bitfinex-derivatives/quotes_ETHF0:USTF0_20250828
["timestamp","ask_amount","ask_price","bid_price","bid_amount"]
[1756416170461,1.12203188,4481.0,4480.9,0.6926]
[1756416170974,0.72038188,4481.0,4480.9,1.09426]
[1756416171975,1.12203188,4481.0,4480.9,1.09426]
[1756416174376,1.12203188,4481.0,4480.9,0.6926]
[1756416178478,1.12203188,4481.0,4480.9,0.2869]
[1756416178872,0.67808,4480.7,4480.6,0.6926]
[1756416179070,1.10168,4480.7,4480.6,0.6926]
[1756416179277,1.10168,4480.7,4480.6,1.09429]
[1756416179481,0.7,4480.7,4480.6,1.09429]
[1756416180684,1.10168,4480.7,4480.6,1.09429]
[1756416181686,1.10168,4480.7,4480.6,0.6926]
[1756416187185,0.7,4480.7,4480.6,1.09429]
[1756416187385,0.43188188,4481.0,4480.7,0.387]
[1756416187586,0.69928188,4481.0,4480.9,0.6634]
[1756416188581,0.69928188,4481.0,4480.9,1.06506]
[1756416188885,0.69928188,4481.0,4480.9,0.6634]
[1756416193796,0.69928188,4481.0,4480.9,0.2764]
[1756416194093,0.69928188,4481.0,4480.9,0.6634]
[1756416194482,0.69928188,4481.0,4480.9,2.25579262]
[1756416195297,0.69928188,4481.0,4480.9,0.6634]
[1756416195800,0.69928188,4481.0,4480.9,2.25579262]
[1756416197290,0.69928188,4481.0,4480.9,0.6634]
[1756416197291,1.10093188,4481.0,4480.9,0.6634]
[1756416200303,1.10093188,4481.0,4480.9,2.25579262]
[1756416202408,0.69928188,4481.0,4480.9,2.65745262]
[1756416202609,1.10093188,4481.0,4480.9,2.25579262]
[1756416210609,0.69928188,4481.0,4480.9,2.65745262]
[1756416210806,0.69928188,4481.0,4480.9,2.25579262]
[1756416211707,0.02038188,4481.0,4480.9,2.65745262]
[1756416211899,0.40159,4481.8,4481.1,1.00411]
[1756416212208,0.4115,4482.0,4481.7,1.06499]
[1756416212410,0.6789,4482.0,4481.9,0.6634]
[1756416213210,0.6789,4482.2,4482.1,0.6634]
[1756416215006,0.2674,4482.2,4481.9,0.617]
[1756416215312,0.6789,4482.0,4481.9,0.8934]
[1756416218811,0.3787,4482.7,4482.0,0.3901]
[1756416219012,0.6482,4482.1,4482.0,0.6458]
[1756416222311,0.3787,4482.9,4482.1,0.3901]
[1756416223216,0.3787,4482.9,4482.2,0.40155]
[1756416223412,0.6482,4482.9,4482.2,0.3901]
[1756416226417,0.6482,4482.3,4481.8,0.212]
[1756416226915,0.2695,4482.3,4482.2,0.2557]
[1756416227116,0.2695,4482.3,4482.2,0.6458]
[1756416227621,0.6482,4482.3,4482.2,0.6458]
[1756416228210,0.102,4483.2,4482.2,0.2557]
[1756416228412,0.3787,4483.2,4482.3,0.3901]
[1756416228715,0.6482,4483.0,4482.9,0.2557]
[1756416228915,0.6482,4483.0,4482.9,0.6458]
[1756416233718,0.6482,4483.0,4482.1,0.3901]
[1756416236725,0.6482,4483.0,4482.3,0.3901]
[1756416237423,0.6482,4483.0,4482.9,0.6458]
[1756416241925,0.6482,4483.0,4482.1,1.59422245]
[1756416242126,0.3787,4482.9,4482.3,0.3901]
[1756416242630,0.6482,4482.4,4482.3,0.6458]
[1756416256637,0.2695,4482.4,4481.6,1.59422245]
[1756416256837,0.2608,4481.2,4481.0,1.99492245]
[1756416257029,0.3862,4481.1,4481.0,0.6737]
[1756416257234,0.647,4481.1,4481.0,0.6737]
[1756416258649,0.647,4481.1,4481.0,0.273]
[1756416263445,0.647,4481.1,4480.8,0.4007]
[1756416263649,0.3862,4481.0,4480.0,0.229]
[1756416263851,0.3862,4481.0,4480.1,0.4007]
[1756416265050,0.647,4480.2,4480.1,0.6737]
[1756416268547,0.2608,4480.2,4479.6,0.4007]
[1756416268747,0.3862,4481.0,4479.0,0.6297]
[1756416268953,0.3862,4480.8,4479.1,0.4007]
[1756416269156,0.2608,4479.2,4479.1,0.6737]
[1756416269352,0.07,4481.1,4479.1,0.273]
[1756416269654,1.13182789,4481.0,4479.2,0.4007]
[1756416269843,0.3862,4480.8,4479.2,0.4007]
[1756416270048,0.3862,4480.6,4479.2,0.4007]
[1756416270650,0.3862,4480.4,4479.2,0.4007]
[1756416284173,0.17603134,4481.5,4480.3,0.6415]
[1756416284471,0.3673,4481.4,4480.4,0.3945]
[1756416285065,0.6273,4481.4,4481.3,0.247]
[1756416285267,0.6273,4481.4,4481.3,0.6415]
[1756416285665,32.154,4482.3,4479.6,1.59422245]
[1756416285666,0.3673,4481.3,4479.7,0.3945]
[1756416285866,0.3673,4481.3,4479.9,0.3945]
[1756416286570,0.3673,4481.3,4479.8,0.101]
[1756416286571,0.3673,4481.3,4480.1,0.3945]
[1756416286775,0.6273,4481.3,4481.2,0.6415]
[1756416319700,0.5997,4482.2,4481.3,0.38]
[1756416319901,0.3717,4482.0,4481.3,0.38]
[1756416320097,0.2391,4481.4,4481.3,0.6344]
[1756416320303,0.6108,4481.4,4481.3,0.6344]
[1756416329507,0.2391,4481.4,4480.7,1.59422245]
[1756416329703,0.6108,4480.9,4480.8,0.6344]
[1756416336111,0.2391,4480.9,4480.8,0.6344]
[1756416336310,0.3569,4482.1,4480.9,0.3623]
[1756416336512,0.3569,4481.9,4480.9,0.3623]
[1756416336713,0.3569,4481.7,4480.9,0.3623]
[1756416336912,0.3569,4481.5,4480.9,0.3623]
[1756416339620,0.3569,4481.5,4481.4,0.6003]
[1756416339621,0.6075,4481.5,4481.4,0.6003]
[1756416339913,1.60085482,4483.4,4481.0,0.22315]
[1756416339914,0.3569,4482.8,4481.5,0.3623]
[1756416340110,0.53007382,4482.7,4481.7,1.59607629]
[1756416340310,0.6075,4482.5,4482.4,0.238]
[1756416340619,0.6075,4482.5,4482.4,0.6003]
[1756416342219,0.3569,4483.9,4482.5,0.3623]
[1756416342514,0.3569,4483.5,4482.5,0.3623]
[1756416342718,0.6075,4482.6,4482.5,0.6003]
[1756416347119,0.2506,4481.8,4481.7,0.6003]
[1756416347321,0.6075,4481.8,4481.7,0.6003]
[1756416353626,0.6075,4481.8,4481.7,0.238]
[1756416354418,0.6075,4481.8,4481.7,0.6003]
[1756416357127,0.6075,4481.8,4481.2,0.3623]
[1756416359133,0.062,4482.6,4480.5,0.228]
[1756416359325,0.3569,4482.4,4480.6,0.3623]
[1756416359522,0.3569,4482.2,4480.6,0.3623]
[1756416359730,0.6075,4480.7,4480.6,0.6003]
[1756416360231,0.6075,4480.7,4480.1,0.228]
[1756416360232,0.6075,4480.7,4480.1,1.82407629]
[1756416360429,0.6075,4480.7,4480.2,0.3623]
[1756416360430,0.3569,4480.6,4480.2,0.3623]
[1756416360628,0.6075,4480.2,4480.1,0.6003]
[1756416361627,0.6075,4480.2,4480.1,0.238]
[1756416362932,0.2506,4479.6,4479.5,0.6003]
[1756416363135,0.6075,4479.6,4479.5,0.6003]
[1756416363831,0.6075,4479.6,4479.5,0.238]
[1756416364225,0.6075,4479.6,4478.8,0.228]
[1756416364425,0.6075,4479.6,4479.0,0.3623]
[1756416366130,0.6075,4479.6,4479.5,0.5874]
[1756416374242,0.3776,4480.5,4479.6,0.3494]
[1756416374445,0.6297,4480.5,4480.4,0.5805]
[1756416375144,32.141,4482.5,4480.4,0.2311]
[1756416375145,0.075,4481.6,4480.4,0.2311]
[1756416375343,0.3776,4481.5,4480.5,0.3494]
[1756416375540,0.60078,4481.5,4480.5,0.3494]
[1756416375735,0.3776,4481.5,4480.5,0.3494]
[1756416376041,0.6297,4481.5,4481.4,0.5805]
[1756416378443,1.03131,4481.5,4481.4,0.5805]
[1756416383436,1.0039,4482.1,4481.5,0.3494]
[1756416383643,0.65366,4482.1,4482.0,0.5805]
[1756416384037,0.65366,4482.1,4482.0,0.2311]
[1756416384246,1.0039,4482.1,4481.8,0.3494]
[1756416384441,0.2521,4481.9,4481.8,0.5805]
[1756416384641,0.65367,4481.9,4481.8,0.5805]
[1756416385044,1.00383,4482.4,4481.9,0.3494]
[1756416385348,1.00383,4482.4,4480.9,1.00415]
[1756416385349,0.65363,4482.4,4482.3,0.5805]
[1756416385550,1.03123,4482.4,4482.3,0.5805]
[1756416398253,0.6297,4482.4,4481.1,0.3575]
[1756416399356,0.40163,4481.3,4481.2,0.2453]
[1756416399554,0.40163,4481.3,4481.2,0.6028]
[1756416399755,0.40163,4481.3,4481.2,0.82595]
[1756416400358,0.40163,4481.3,4481.2,0.6028]
[1756416404558,0.99573,4481.3,4481.2,0.6028]
[1756416420678,0.3569,4481.2,4480.6,2.22205203]
[1756416420876,0.5941,4480.7,4480.6,0.8298]
[1756416421078,0.5941,4480.7,4480.6,0.6028]
[1756416421676,0.5941,4480.7,4480.1,2.22205203]
[1756416421870,0.3569,4480.6,4480.2,0.3575]
[1756416422075,0.2372,4480.3,4480.2,0.6028]
[1756416422275,0.5941,4480.3,4480.2,0.6028]
[1756416422475,0.99582,4480.3,4480.2,0.6028]
[1756416423477,0.99583,4480.1,4480.0,0.8298]
[1756416431283,0.99583,4480.1,4480.0,0.6028]
[1756416432681,0.98933,4480.1,4480.0,0.6028]
[1756416435885,0.40184,4479.0,4478.8,2.34235203]
[1756416436090,0.40184,4479.0,4476.7,2.01022]
[1756416436091,0.98944,4479.0,4478.9,0.5711]
[1756416445193,0.98948,4478.5,4478.4,0.5711]
[1756416446384,0.63488,4478.5,4478.4,0.5711]
[1756416446584,0.98948,4478.5,4478.4,0.5711]
[1756416447698,0.98948,4478.5,4478.4,0.3473]
[1756416448096,0.40195,4477.7,4477.6,0.7981]
[1756416448801,0.98955,4477.7,4477.6,0.7981]
[1756416448993,0.40195,4477.7,4477.6,0.7981]
[1756416450304,0.40195,4477.7,4477.6,0.5711]
[1756416450599,0.40195,4477.7,4477.6,0.7981]
[1756416451000,0.75655,4477.7,4477.6,0.5711]
[1756416451805,0.40195,4477.7,4477.6,0.7981]
[1756416454297,1.00454,4479.3,4477.7,0.3473]
[1756416454502,2.36383,4478.9,4478.4,0.2238]
[1756416454806,0.40188,4478.5,4478.4,0.2238]
[1756416455205,0.40188,4478.5,4478.4,0.5711]
[1756416457203,0.95778,4478.5,4478.4,0.5711]
[1756416457798,0.40188,4478.5,4478.4,0.5711]
[1756416458203,0.95778,4478.5,4478.4,0.5711]
[1756416461010,0.40188,4478.5,4478.4,0.5711]
[1756416462611,0.95778,4478.5,4478.4,0.5711]
[1756416462906,0.40188,4478.4,4478.3,0.227]
[1756416463101,0.95778,4478.4,4478.3,0.8152]
[1756416464713,0.40188,4478.4,4478.3,0.8152]
[1756416465408,0.40188,4478.4,4478.3,0.5882]
[1756416466009,0.40183,4479.0,4478.9,0.5882]
[1756416466203,0.40183,4479.0,4478.9,0.8152]
[1756416466599,0.40182,4479.1,4479.0,0.75553]
[1756416466806,0.40181,4479.2,4479.1,0.99001]
[1756416467107,0.40181,4479.2,4479.1,0.5882]
[1756416469103,1.00442,4479.8,4479.1,0.5882]
[1756416469307,0.40176,4479.8,4479.7,0.5882]
[1756416469803,0.63026,4479.8,4479.7,0.5882]
[1756416470407,0.40176,4479.8,4479.7,0.5882]
[1756416471011,0.40175,4480.0,4479.9,0.2345]
[1756416471309,0.40175,4480.0,4479.9,0.5882]
[1756416472507,0.40173,4480.2,4480.1,0.5882]
[1756416473012,0.40171,4480.4,4480.3,0.5882]
[1756416474213,0.95761,4480.4,4480.3,0.5882]
[1756416474507,0.95761,4480.4,4480.3,0.8152]
[1756416479516,0.95761,4480.4,4480.3,0.227]
[1756416479912,0.95761,4480.4,4480.3,0.5807]
[1756416480112,0.95761,4480.4,4480.3,0.8152]
[1756416480319,0.40171,4480.4,4480.3,1.21691]
[1756416480517,0.72909,4480.6,4480.5,0.5882]
[1756416480817,0.95759,4480.6,4480.5,0.9899]
[1756416481210,0.95759,4480.6,4480.5,0.5882]
[1756416481914,0.2285,4480.8,4480.7,0.40168]
[1756416482122,0.63017,4480.8,4480.7,0.5882]
[1756416482418,0.6302,4480.5,4480.4,0.9899]
[1756416482618,0.9576,4480.5,4480.4,1.2169]
[1756416482913,0.9576,4480.5,4480.4,0.8152]
[1756416483313,0.9576,4480.5,4480.4,0.5882]
[1756416483523,0.95762,4480.3,4480.2,0.98992]
[1756416483717,0.95762,4480.3,4480.2,1.21692]
[1756416484722,0.95762,4480.3,4480.2,0.8152]
[1756416487721,0.95762,4480.3,4480.2,0.5882]
[1756416488020,0.95762,4480.3,4480.2,0.8152]
[1756416491417,0.40171,4480.4,4480.3,0.96391]
[1756416492427,0.40171,4480.4,4480.3,0.5622]
[1756416493935,0.74751,4480.4,4480.3,0.5622]
[1756416494529,0.97941,4480.4,4480.3,0.5622]
[1756416494924,0.97941,4480.4,4480.3,0.7892]
[1756416496130,0.40176,4479.8,4479.7,2.55725203]
[1756416496329,0.97946,4479.8,4479.7,2.78445858]
[1756416497931,0.97946,4479.8,4479.7,3.18622858]
[1756416498339,0.97946,4479.8,4479.7,1.19097]
[1756416500135,0.63366,4479.8,4479.7,1.19097]
[1756416500938,0.97946,4479.8,4479.7,1.19097]
[1756416501840,0.97946,4479.8,4479.7,0.7892]
[1756416502035,0.97946,4479.8,4479.7,1.19097]
[1756416502643,0.5777,4479.8,4479.7,1.19097]
[1756416503243,0.74755,4479.9,4479.8,0.63266]
[1756416503542,0.74755,4479.9,4479.8,0.96396]
[1756416505143,0.3458,4479.9,4479.8,0.96396]
[1756416505536,0.5777,4480.7,4480.6,0.2309]
[1756416505737,0.40165,4481.0,4480.9,0.2309]
[1756416505938,0.97935,4481.0,4480.9,0.7892]
[1756416507747,0.97935,4481.0,4480.9,1.19086]
[1756416508346,0.5777,4481.0,4480.9,1.19086]
[1756416509038,0.63351,4481.5,4481.4,0.2309]
[1756416509245,0.63351,4481.5,4481.4,0.5622]
[1756416509438,0.3458,4481.4,4481.3,0.227]
[1756416509643,0.5777,4481.4,4481.3,0.5583]
[1756416509843,0.5777,4481.4,4481.3,0.95992]
[1756416510245,0.5777,4481.4,4481.3,1.19082]
[1756416517448,0.97931,4481.4,4481.3,0.7892]
[1756416517655,0.5777,4481.4,4481.3,0.7892]
[1756416517854,0.5777,4481.4,4481.3,1.19082]
[1756416518953,0.97931,4481.4,4481.3,1.19082]
[1756416519355,0.5777,4481.4,4481.3,1.19082]
[1756416519950,0.40159,4481.7,4481.3,0.7892]
[1756416520157,0.94047,4481.9,4481.8,0.5749]
[1756416521457,0.94047,4481.9,4481.8,0.97648]
[1756416521657,0.326,4481.9,4481.8,0.97648]
[1756416521959,0.5389,4481.9,4481.8,0.97648]
[1756416522646,1.00377,4482.7,4482.2,0.40154]
[1756416522853,0.5389,4482.3,4482.2,0.97644]
[1756416523455,0.94044,4482.3,4482.2,0.97644]
[1756416523852,0.2129,4482.3,4482.2,0.97644]
[1756416524056,0.2129,4482.8,4482.7,0.5749]
[1756416524256,0.5389,4482.8,4482.7,0.5749]
[1756416529262,0.5389,4483.0,4482.9,0.2285]
[1756416529564,0.94037,4483.0,4482.9,0.5749]
[1756416530162,0.5389,4483.0,4482.9,0.5749]
[1756416531171,0.94037,4483.0,4482.9,0.5749]
[1756416534764,0.5389,4483.0,4482.9,0.97638]
[1756416534975,0.40146,4483.2,4483.1,0.5749]
[1756416535174,0.5389,4483.7,4483.6,0.2285]
[1756416535373,10.03078,4485.8,4483.7,0.7478]
[1756416535374,0.40136,4484.3,4483.7,0.7478]
[1756416535572,0.2129,4484.0,4483.9,0.97629]
[1756416536068,0.326,4484.2,4484.0,0.40137]
[1756416536372,0.5389,4484.2,4484.1,0.5749]
[1756416537175,0.2129,4484.2,4484.1,0.5749]
[1756416537475,0.5389,4484.2,4484.1,0.5749]
[1756416542772,0.5389,4484.2,4483.9,0.3464]
[1756416543183,0.5389,4484.2,4483.7,0.3464]
[1756416543477,0.5389,4484.2,4483.8,0.3464]
[1756416543678,0.5389,4484.2,4484.1,0.5749]
[1756416544180,0.5389,4484.2,4483.5,0.40142]
[1756416544373,0.5389,4484.2,4483.6,0.3464]
[1756416544572,0.326,4484.1,4483.6,0.40141]
[1756416544773,0.326,4484.1,4483.8,0.3464]
[1756416544974,0.326,4484.1,4483.8,0.2285]
[1756416545171,0.2129,4483.9,4483.8,0.2285]
[1756416545683,0.5389,4483.9,4483.8,0.5749]
[1756416545875,0.5389,4483.9,4483.3,0.226]
[1756416546079,0.5389,4483.9,4483.4,0.3281]
[1756416547984,0.5389,4483.9,4483.3,0.226]
[1756416548185,0.5389,4483.9,4483.4,0.3281]
[1756416548385,0.5389,4483.9,4483.3,0.226]
[1756416548584,0.5389,4483.9,4483.3,0.3281]
[1756416550085,0.2129,4483.9,4483.2,0.226]
[1756416550290,0.2209,4483.5,4483.4,0.61943]
[1756416550579,0.5612,4483.5,4483.4,0.61943]
[1756416550787,0.5612,4483.5,4483.4,0.218]
[1756416550980,0.5612,4483.5,4483.4,0.5461]
[1756416552685,0.5612,4483.5,4483.0,0.226]
[1756416552886,0.2209,4483.5,4483.0,0.3281]
[1756416553189,0.2209,4483.1,4483.0,0.3281]
[1756416553390,0.5612,4483.1,4483.0,0.3281]
[1756416553582,0.5612,4483.1,4483.0,0.5461]
[1756416553981,0.2209,4482.5,4482.4,0.5461]
[1756416554185,0.5612,4482.5,4481.9,0.226]
[1756416554788,0.5612,4482.5,4482.0,0.3281]
[1756416555098,0.3403,4482.4,4481.8,0.5541]
[1756416555289,0.3403,4483.2,4481.9,0.3281]
[1756416555483,0.2209,4482.0,4481.9,0.5461]
[1756416555689,0.5612,4482.0,4481.9,0.5461]
[1756416558289,0.2209,4482.0,4481.9,0.5461]
[1756416559903,0.5612,4482.0,4481.9,0.5461]
[1756416560390,0.3403,4483.4,4482.0,0.3281]
[1756416560899,0.22308,4483.3,4482.0,0.3281]
[1756416561097,0.3403,4483.2,4482.0,0.3281]
[1756416561498,0.2209,4482.1,4482.0,0.7721]
[1756416561698,0.5612,4482.1,4482.0,0.7721]
[1756416561998,0.061,4483.8,4482.0,0.5461]
[1756416562293,0.2209,4482.2,4482.1,0.5461]
[1756416562600,0.2209,4482.2,4482.1,0.3281]
[1756416562601,0.5612,4482.2,4482.1,0.3281]
[1756416563001,0.5612,4482.2,4481.8,0.3281]
[1756416563891,0.5612,4482.2,4481.2,0.226]
[1756416564198,0.2209,4481.4,4481.3,0.5461]
[1756416564499,0.5612,4481.4,4481.3,0.5461]
[1756416566302,0.2209,4481.4,4481.3,0.5461]
[1756416567501,0.3403,4483.7,4481.4,0.3281]
[1756416567798,0.3403,4483.5,4481.4,0.3281]
[1756416567990,0.52224833,4483.4,4481.4,0.3281]
[1756416568192,0.22309,4483.5,4481.4,0.3281]
[1756416568496,0.86253358,4483.4,4481.4,0.3281]
[1756416568696,0.3403,4483.4,4481.4,0.3281]
[1756416568899,0.3403,4483.2,4481.4,0.3281]
[1756416569103,0.04,4483.1,4481.4,0.3281]
[1756416569295,0.3403,4483.0,4481.4,0.3281]
[1756416569797,0.5634,4483.0,4481.4,0.3281]
[1756416569992,0.2231,4482.9,4481.4,0.3281]
[1756416570192,0.3403,4483.0,4481.4,0.3281]
[1756416570498,0.5634,4483.0,4481.4,0.3281]
[1756416570695,0.3403,4483.0,4481.4,0.3281]
[1756416571302,0.3403,4483.0,4481.6,0.3281]
[1756416572800,0.5612,4481.7,4481.6,0.5461]
[1756416582598,0.2209,4481.7,4481.4,0.3263]
[1756416582805,0.2255,4481.5,4481.4,0.3263]
[1756416583004,0.5441,4481.5,4481.4,0.3263]
[1756416584502,0.065,4482.7,4481.5,0.3263]
[1756416584708,0.2255,4481.6,4481.5,0.531]
[1756416584911,0.5441,4481.6,4481.5,0.531]
[1756416585408,0.5441,4481.7,4481.6,0.531]
[1756416589409,0.5441,4481.7,4481.1,0.226]
[1756416589611,0.5441,4481.7,4481.2,0.3263]
[1756416592413,0.3186,4481.6,4481.1,1.82014529]
[1756416592613,0.5441,4481.2,4481.1,2.12514529]
[1756416593307,0.075,4482.7,4481.1,2.12514529]
[1756416593506,0.74780111,4482.6,4481.1,1.79884529]
[1756416593702,0.84328111,4482.5,4481.2,0.3263]
[1756416593906,0.3186,4482.3,4481.2,0.3263]
[1756416594213,0.3186,4482.1,4481.2,0.3263]
[1756416594911,0.5441,4481.3,4481.2,0.531]
[1756416602710,0.3186,4481.2,4480.9,0.3263]
[1756416602915,0.2255,4481.0,4480.9,0.3263]
[1756416603110,0.2255,4481.0,4480.6,1.59414529]
[1756416603111,0.3186,4480.9,4480.6,0.3263]
[1756416603313,0.2255,4480.7,4480.6,0.3263]
[1756416603509,0.5441,4480.7,4480.6,0.3263]
[1756416604110,0.3186,4480.6,4480.4,0.3263]
[1756416604319,0.2255,4480.5,4480.4,0.531]
[1756416604511,0.5441,4480.5,4480.4,0.531]
[1756416604716,0.5441,4480.5,4480.2,1.59414529]
[1756416604914,0.2255,4479.9,4479.8,0.531]
[1756416605119,0.5441,4479.9,4479.8,0.531]
[1756416611114,0.089,4481.3,4479.8,0.531]
[1756416611329,1.07131617,4481.2,4479.9,0.3178]
[1756416611519,0.54199,4481.2,4479.9,0.3178]
[1756416611824,0.22319,4481.1,4479.9,0.3178]
[1756416612019,0.3188,4481.0,4479.9,0.3178]
[1756416612818,0.22319,4480.9,4479.9,0.3178]
[1756416613021,0.3188,4480.8,4479.9,0.3178]
[1756416613217,0.54199,4480.8,4479.9,0.3178]
[1756416613420,0.3188,4480.8,4479.9,0.3178]
[1756416614826,0.5337,4480.8,4480.7,0.2219]
[1756416615025,0.5337,4480.8,4480.7,0.5397]
[1756416617129,0.93536,4480.9,4480.8,0.5397]
[1756416617529,0.61656,4480.9,4480.8,0.5397]
[1756416617727,0.93536,4480.9,4480.8,0.5397]
[1756416619028,2.0081,4481.4,4479.8,0.3339]
[1756416619029,0.40175,4479.9,4479.8,0.3339]
[1756416619229,0.40175,4479.9,4479.8,0.6517]
[1756416619426,0.40174,4480.0,4479.9,0.3178]
[1756416619628,0.40174,4480.0,4479.9,0.5397]
[1756416619934,0.40174,4480.0,4479.9,4.76292]
[1756416621338,0.40174,4480.0,4479.9,4.5397]
[1756416621839,0.40174,4480.0,4479.9,4.94145]
[1756416622041,0.4017,4480.5,4480.4,0.2219]
[1756416622434,0.9354,4480.5,4480.4,0.5397]
[1756416622740,0.93544,4480.0,4479.9,0.7427]
[1756416622935,0.93544,4480.0,4479.9,0.5397]
[1756416625533,0.40181,4479.3,4479.2,0.5397]
[1756416625738,0.40181,4479.3,4479.2,0.7657]
[1756416629144,0.72061,4479.3,4479.2,0.7657]
[1756416631046,0.40181,4479.3,4479.2,0.7657]
[1756416631342,0.93551,4479.3,4479.2,0.7657]
[1756416631735,0.40181,4479.3,4479.2,0.7657]
[1756416633042,0.93551,4479.3,4479.2,0.7657]
[1756416633945,0.40181,4479.3,4479.2,0.7657]
[1756416634348,0.40181,4479.3,4479.2,1.16751]
[1756416634740,1.00436,4480.0,4479.7,0.2219]
[1756416634946,2.2343,4481.0,4480.0,0.5397]
[1756416634947,0.5337,4480.1,4480.0,0.5397]
[1756416635647,2.0083,4481.0,4480.0,0.2219]
[1756416635843,0.2149,4480.4,4480.3,0.2219]
[1756416636043,0.2149,4480.4,4480.3,0.5397]
[1756416636444,0.5234,4480.4,4480.3,0.5397]
[1756416638550,0.3085,4481.3,4480.4,0.3078]
[1756416639248,0.2139,4480.5,4480.4,0.5227]
[1756416639452,0.5224,4480.5,4480.4,0.5227]
[1756416642755,0.5224,4480.5,4479.8,40.8]
[1756416642756,0.92414,4480.0,4479.9,0.5227]
[1756416644956,0.40174,4480.0,4479.9,0.5227]
[1756416646558,0.92414,4480.0,4479.9,0.5227]
[1756416647955,0.71029,4479.4,4479.3,0.7487]
[1756416648160,0.92419,4479.4,4479.3,0.7487]
[1756416652361,0.61573,4479.0,4478.9,2.52277598]
[1756416652565,0.61573,4479.0,4478.9,0.5227]
[1756416652566,0.92423,4479.0,4478.9,0.5227]
[1756416660366,0.92423,4479.0,4478.9,0.92454]
[1756416660669,0.40183,4479.0,4478.9,0.92454]
[1756416661460,0.7103,4479.3,4479.2,0.40181]
[1756416661664,0.40178,4479.6,4479.5,0.5227]
[1756416661868,0.40177,4479.8,4479.7,0.5227]
[1756416662069,0.40177,4479.8,4479.7,1.15047]
[1756416662666,0.40175,4479.9,4479.8,0.2149]
[1756416662865,0.92415,4479.9,4479.8,0.226]
[1756416663762,0.92415,4479.9,4479.8,0.4409]
[1756416663965,0.92415,4479.9,4479.8,0.7487]
[1756416668370,0.40174,4480.1,4480.0,0.40173]
[1756416668570,0.40174,4480.1,4480.0,0.90633]
[1756416668969,0.91704,4480.1,4480.0,0.90633]
[1756416669874,0.91704,4480.1,4480.0,0.5046]
[1756416670076,0.91704,4480.1,4480.0,0.90634]
[1756416672771,0.91704,4480.1,4479.6,0.2047]
[1756416672772,0.70594,4480.1,4479.6,0.2047]
[1756416672971,0.91706,4479.8,4479.7,0.7306]
[1756416674071,0.91706,4479.8,4479.7,1.13237]
[1756416674870,0.5153,4479.8,4479.7,1.13237]
[1756416675071,0.91706,4479.8,4479.7,1.13237]
[1756416675572,0.91706,4479.8,4479.7,0.5046]
[1756416675771,0.91706,4479.8,4479.7,0.7306]
[1756416676875,0.91706,4479.8,4479.7,1.13237]
[1756416677076,0.40176,4479.8,4479.7,1.13237]
[1756416677377,0.91703,4480.1,4480.0,0.5046]
[1756416682380,0.70598,4479.5,4479.4,2.20477598]
[1756416682584,0.40178,4479.5,4479.4,2.65401598]
[1756416682881,0.40178,4479.5,4479.4,2.95391598]
[1756416683282,0.40178,4479.5,4479.4,2.73067598]
[1756416683485,0.40178,4479.5,4479.4,3.13246598]
[1756416684982,0.91708,4479.5,4479.4,2.73067598]
[1756416685582,0.91708,4479.5,4479.4,0.7306]
[1756416687676,0.91708,4479.5,4479.4,0.4307]
[1756416687884,0.91708,4479.5,4479.4,0.226]
[1756416688081,0.9171,4479.3,4479.2,2.29997598]
[1756416688286,0.9171,4479.3,4479.2,2.73067598]
[1756416689385,0.9171,4479.3,4479.2,0.7306]
[1756416690577,0.9171,4479.3,4479.2,0.5046]
[1756416690783,0.9171,4479.3,4478.7,41.20186]
[1756416690784,0.40185,4478.8,4478.7,0.2999]
[1756416691088,0.70607,4478.5,4478.4,34.44997598]
[1756416691283,0.70607,4478.5,4478.4,34.67597598]
[1756416691981,0.70607,4478.5,4478.4,32.376]
[1756416692185,0.40186,4478.7,4478.4,32.376]
[1756416692387,0.91712,4479.1,4479.0,0.5046]
[1756416692587,0.91712,4479.1,4479.0,0.7306]
[1756416692988,0.91712,4479.1,4478.4,32.15]
[1756416692989,0.40187,4478.5,4478.4,32.15]
[1756416693192,0.70607,4478.5,4478.4,32.376]
[1756416693494,0.70607,4478.5,4478.4,32.6759]
[1756416696395,0.2915,4479.1,4479.0,0.5062]
[1756416696698,0.88692,4479.1,4479.0,0.7322]
[1756416699701,0.88692,4479.1,4479.0,0.4331]
[1756416699900,0.88692,4479.1,4479.0,0.7322]
[1756416700600,0.88692,4479.1,4479.0,0.4331]
[1756416701099,0.88692,4479.1,4479.0,0.226]
[1756416701395,0.88692,4479.1,4478.4,32.15]
[1756416701396,0.1936,4478.6,4478.4,32.15]
[1756416701594,0.69337,4478.5,4478.4,32.4491]
[1756416701789,0.69337,4478.5,4478.4,32.6751]
[1756416702501,0.69337,4478.5,4478.4,32.376]
[1756416702902,0.69337,4478.5,4478.4,32.6751]
[1756416703401,0.69337,4478.5,4478.4,32.376]
[1756416704805,0.887,4478.2,4478.1,0.5062]
[1756416705000,0.887,4478.2,4478.1,0.7322]
[1756416706097,0.887,4478.2,4478.1,0.5062]
[1756416706302,0.887,4478.2,4478.1,0.226]
[1756416706696,0.40193,4477.9,4477.8,0.2991]
[1756416706902,0.88703,4477.9,4477.8,0.226]
[1756416707303,0.88706,4477.6,4477.5,0.5062]
[1756416707500,0.88707,4477.4,4477.3,2.00007598]
[1756416707704,0.88707,4477.4,4476.6,0.00240207]